[Event "Live Chess"]
[Site "Chess.com"]
[Date "2023.05.21"]
[Round "-"]
[White "mach247"]
[Black "JuperLuper"]
[Result "0-1"]
[WhiteElo "1326"]
[BlackElo "1207"]
[TimeControl "300"]
[EndTime "1:06:54 PDT"]
[Termination "JuperLuper won by resignation"]

1. e4 {[%clk 0:04:59.6]} 1... d5 {[%clk 0:04:58.7]} 2. exd5 {[%clk 0:04:58.7]}
2... Nf6 {[%clk 0:04:57.9]} 3. Nc3 {[%clk 0:04:55.9]} 3... Nxd5 {[%clk
0:04:56.9]} 4. Nxd5 {[%clk 0:04:55.2]} 4... Qxd5 {[%clk 0:04:56.6]} 5. Nf3
{[%clk 0:04:54.3]} 5... Nc6 {[%clk 0:04:55.5]} 6. Be2 {[%clk 0:04:26.8]} 6... e5
{[%clk 0:04:50.2]} 7. d3 {[%clk 0:04:22.7]} 7... Bc5 {[%clk 0:04:45.9]} 8. O-O
{[%clk 0:04:20.9]} 8... O-O {[%clk 0:04:44.5]} 9. Be3 {[%clk 0:04:04.7]} 9...
Bxe3 {[%clk 0:04:40.5]} 10. fxe3 {[%clk 0:04:04.6]} 10... Be6 {[%clk 0:04:35.3]}
11. c4 {[%clk 0:03:44.6]} 11... Qd8 {[%clk 0:04:31.2]} 12. Nd2 {[%clk
0:03:29.1]} 12... f6 {[%clk 0:04:26.4]} 13. Ne4 {[%clk 0:03:27.9]} 13... Re8
{[%clk 0:04:15.3]} 14. Bg4 {[%clk 0:02:55.7]} 14... Qe7 {[%clk 0:03:43.5]} 15.
Qf3 {[%clk 0:02:41.9]} 15... Bxg4 {[%clk 0:03:34.7]} 16. Qxg4 {[%clk 0:02:38]}
16... Rf8 {[%clk 0:03:33.4]} 17. Qh3 {[%clk 0:02:13.7]} 17... Rad8 {[%clk
0:03:29.4]} 18. Rad1 {[%clk 0:02:11.9]} 18... Nb4 {[%clk 0:03:27.2]} 19. Nf2
{[%clk 0:01:53.7]} 19... Nxa2 {[%clk 0:03:25.4]} 20. d4 {[%clk 0:01:50]} 20...
exd4 {[%clk 0:03:24.1]} 21. exd4 {[%clk 0:01:49]} 21... Nb4 {[%clk 0:03:16.9]}
22. Rfe1 {[%clk 0:01:44]} 22... Qf7 {[%clk 0:03:16.1]} 23. Ne4 {[%clk
0:01:36.6]} 23... Qxc4 {[%clk 0:03:13.6]} 24. Nc5 {[%clk 0:01:15.2]} 24... Rxd4
{[%clk 0:03:06.1]} 25. Ne6 {[%clk 0:01:10.7]} 25... Rxd1 {[%clk 0:03:02.9]} 26.
Qg3 {[%clk 0:01:00.8]} 26... Rxe1+ {[%clk 0:03:00.6]} 27. Qxe1 {[%clk
0:01:00.2]} 0-1

[Event "Live Chess"]
[Site "Chess.com"]
[Date "2023.05.21"]
[Round "-"]
[White "CheckThis4"]
[Black "Biranidun"]
[Result "0-1"]
[WhiteElo "2485"]
[BlackElo "2542"]
[TimeControl "300"]
[EndTime "1:06:55 PDT"]
[Termination "Biranidun won by resignation"]

1. d4 {[%clk 0:04:53.9]} 1... g6 {[%clk 0:04:58.6]} 2. e4 {[%clk 0:04:52.6]}
2... Bg7 {[%clk 0:04:57.8]} 3. Nc3 {[%clk 0:04:52.2]} 3... d6 {[%clk 0:04:56.9]}
4. Be3 {[%clk 0:04:50.8]} 4... a6 {[%clk 0:04:56]} 5. Qd2 {[%clk 0:04:48.5]}
5... b5 {[%clk 0:04:55.5]} 6. f3 {[%clk 0:04:47.5]} 6... Nd7 {[%clk 0:04:54.1]}
7. h4 {[%clk 0:04:43.9]} 7... h6 {[%clk 0:04:53.1]} 8. Nh3 {[%clk 0:04:35.7]}
8... Bb7 {[%clk 0:04:52.3]} 9. g4 {[%clk 0:04:21.8]} 9... c5 {[%clk 0:04:50.6]}
10. Ne2 {[%clk 0:04:20.1]} 10... cxd4 {[%clk 0:04:46.1]} 11. Nxd4 {[%clk
0:04:18.2]} 11... Rc8 {[%clk 0:04:42.2]} 12. Be2 {[%clk 0:04:16.3]} 12... Ngf6
{[%clk 0:04:41]} 13. O-O-O {[%clk 0:04:03.8]} 13... Qc7 {[%clk 0:04:40]} 14. Kb1
{[%clk 0:04:00]} 14... Ne5 {[%clk 0:04:39.2]} 15. Nf4 {[%clk 0:03:53.1]} 15...
Nfd7 {[%clk 0:04:30.5]} 16. h5 {[%clk 0:03:42]} 16... g5 {[%clk 0:04:22.6]} 17.
Nd5 {[%clk 0:03:37.2]} 17... Bxd5 {[%clk 0:04:21.7]} 18. exd5 {[%clk 0:03:37.1]}
18... Nb6 {[%clk 0:04:12.5]} 19. Nf5 {[%clk 0:03:31.8]} 19... Bf6 {[%clk
0:04:11.6]} 20. b3 {[%clk 0:03:23.7]} 20... Nxd5 {[%clk 0:04:06.2]} 21. Bd4
{[%clk 0:03:11]} 21... Nf4 {[%clk 0:04:01]} 22. Rh2 {[%clk 0:03:03.1]} 22... d5
{[%clk 0:03:57.8]} 23. c3 {[%clk 0:02:43]} 23... e6 {[%clk 0:03:56.7]} 24. Ne3
{[%clk 0:02:33.8]} 24... Nd7 {[%clk 0:03:54.4]} 25. Bxf6 {[%clk 0:02:24.7]}
25... Nxf6 {[%clk 0:03:54.3]} 26. Rc1 {[%clk 0:02:24]} 26... O-O {[%clk
0:03:50.1]} 27. Bd1 {[%clk 0:02:23]} 27... Rfd8 {[%clk 0:03:47.6]} 28. Rf2
{[%clk 0:02:11.4]} 28... d4 {[%clk 0:03:43.4]} 29. cxd4 {[%clk 0:02:05.2]} 29...
Qxc1+ {[%clk 0:03:43.3]} 30. Qxc1 {[%clk 0:02:04.6]} 30... Rxc1+ {[%clk
0:03:42.1]} 31. Kxc1 {[%clk 0:02:04.5]} 31... Nd3+ {[%clk 0:03:41.7]} 0-1

[Event "Live Chess"]
[Site "Chess.com"]
[Date "2023.05.21"]
[Round "-"]
[White "LiamClery2020"]
[Black "MarkLim1"]
[Result "1-0"]
[WhiteElo "2026"]
[BlackElo "1693"]
[TimeControl "300"]
[EndTime "1:07:24 PDT"]
[Termination "LiamClery2020 won by resignation"]

1. e4 {[%clk 0:04:59.2]} 1... e6 {[%clk 0:04:57]} 2. d4 {[%clk 0:04:58.2]} 2...
d5 {[%clk 0:04:56.2]} 3. Nd2 {[%clk 0:04:57.6]} 3... c5 {[%clk 0:04:55.2]} 4. c3
{[%clk 0:04:55.7]} 4... cxd4 {[%clk 0:04:54.2]} 5. cxd4 {[%clk 0:04:49.5]} 5...
dxe4 {[%clk 0:04:54.1]} 6. Nxe4 {[%clk 0:04:49.4]} 6... Bb4+ {[%clk 0:04:52.7]}
7. Bd2 {[%clk 0:04:48.3]} 7... Bxd2+ {[%clk 0:04:51.7]} 8. Qxd2 {[%clk
0:04:48.2]} 8... Nc6 {[%clk 0:04:48.1]} 9. Nf3 {[%clk 0:04:46.5]} 9... Nf6
{[%clk 0:04:46.6]} 10. Nxf6+ {[%clk 0:04:45.7]} 10... Qxf6 {[%clk 0:04:45.6]}
11. Bb5 {[%clk 0:04:45.6]} 11... Bd7 {[%clk 0:04:44.5]} 12. O-O {[%clk
0:04:44.4]} 12... O-O {[%clk 0:04:43.2]} 13. Rac1 {[%clk 0:04:42.8]} 13... Rfd8
{[%clk 0:04:41.5]} 14. Qe3 {[%clk 0:04:41.7]} 14... a6 {[%clk 0:04:39.2]} 15.
Bxc6 {[%clk 0:04:40.6]} 15... Bxc6 {[%clk 0:04:38]} 16. Ne5 {[%clk 0:04:40.1]}
16... Bd5 {[%clk 0:04:33.4]} 17. Rc7 {[%clk 0:04:37.1]} 17... Rac8 {[%clk
0:04:28.4]} 18. Rxf7 {[%clk 0:04:35.5]} 18... Qh6 {[%clk 0:04:25.8]} 19. Qa3
{[%clk 0:04:18.3]} 19... Qg5 {[%clk 0:04:21.8]} 20. f3 {[%clk 0:04:10.3]} 20...
Rc2 {[%clk 0:04:16.8]} 21. g3 {[%clk 0:04:05.4]} 21... Qd2 {[%clk 0:04:14]} 22.
Rxg7+ {[%clk 0:04:01.4]} 22... Kh8 {[%clk 0:03:54.7]} 23. Rxh7+ {[%clk
0:04:00.5]} 23... Kxh7 {[%clk 0:03:51.3]} 24. Qe7+ {[%clk 0:03:58.9]} 24... Kh6
{[%clk 0:03:47.1]} 25. Qf6+ {[%clk 0:03:56.6]} 25... Kh7 {[%clk 0:03:43.3]} 26.
Qg6+ {[%clk 0:03:55.6]} 1-0

[Event "Live Chess"]
[Site "Chess.com"]
[Date "2023.05.21"]
[Round "-"]
[White "HoarseyHorsey"]
[Black "MJMykh"]
[Result "1-0"]
[WhiteElo "1467"]
[BlackElo "1110"]
[TimeControl "300"]
[EndTime "1:07:26 PDT"]
[Termination "HoarseyHorsey won by checkmate"]

1. d4 {[%clk 0:04:58.5]} 1... d5 {[%clk 0:04:58.7]} 2. c4 {[%clk 0:04:56.5]}
2... dxc4 {[%clk 0:04:57.5]} 3. e4 {[%clk 0:04:55.7]} 3... Nc6 {[%clk
0:04:56.4]} 4. Nf3 {[%clk 0:04:53.5]} 4... Nf6 {[%clk 0:04:53.1]} 5. e5 {[%clk
0:04:50.5]} 5... Ng8 {[%clk 0:04:49]} 6. Bxc4 {[%clk 0:04:49.3]} 6... h6 {[%clk
0:04:47.8]} 7. Nc3 {[%clk 0:04:29.6]} 7... e6 {[%clk 0:04:43.1]} 8. O-O {[%clk
0:04:27.2]} 8... Bb4 {[%clk 0:04:42]} 9. a3 {[%clk 0:04:20.7]} 9... Bxc3 {[%clk
0:04:41.1]} 10. bxc3 {[%clk 0:04:20.6]} 10... Bd7 {[%clk 0:04:40.6]} 11. Rb1
{[%clk 0:04:17.8]} 11... Rb8 {[%clk 0:04:37.2]} 12. Qd3 {[%clk 0:04:12.2]} 12...
Nge7 {[%clk 0:04:32.4]} 13. Rd1 {[%clk 0:04:09.3]} 13... O-O {[%clk 0:04:30.7]}
14. Bf4 {[%clk 0:04:02.5]} 14... Na5 {[%clk 0:04:25.6]} 15. Bb5 {[%clk
0:03:55.9]} 15... Bxb5 {[%clk 0:04:23.3]} 16. Qxb5 {[%clk 0:03:54]} 16... b6
{[%clk 0:04:18.6]} 17. Qd3 {[%clk 0:03:41.7]} 17... Nd5 {[%clk 0:04:17.2]} 18.
Bd2 {[%clk 0:03:35.9]} 18... Qe7 {[%clk 0:04:10.6]} 19. c4 {[%clk 0:03:34.6]}
19... Nxc4 {[%clk 0:04:02.1]} 20. Qxc4 {[%clk 0:03:31]} 20... Qxa3 {[%clk
0:04:00.2]} 21. Ra1 {[%clk 0:03:21]} 21... Qe7 {[%clk 0:03:54]} 22. Rxa7 {[%clk
0:03:15.9]} 22... Rfc8 {[%clk 0:03:52.2]} 23. Rda1 {[%clk 0:03:10.7]} 23... Kh7
{[%clk 0:03:49.3]} 24. h3 {[%clk 0:02:57.3]} 24... f6 {[%clk 0:03:39.5]} 25.
Qd3+ {[%clk 0:02:49.7]} 25... g6 {[%clk 0:03:35.5]} 26. exf6 {[%clk 0:02:45]}
26... Qxf6 {[%clk 0:03:31.2]} 27. Ne5 {[%clk 0:02:43]} 27... Qg7 {[%clk
0:03:14]} 28. Qc2 {[%clk 0:02:35.8]} 28... Rf8 {[%clk 0:02:59.3]} 29. Nd7 {[%clk
0:02:21.7]} 29... Qxd7 {[%clk 0:02:52.8]} 30. Qe4 {[%clk 0:02:14.8]} 30... Nf6
{[%clk 0:02:42]} 31. Qe5 {[%clk 0:02:09.8]} 31... Rbc8 {[%clk 0:02:31.2]} 32.
Rc1 {[%clk 0:02:06.2]} 32... Nd5 {[%clk 0:02:26.4]} 33. Bb4 {[%clk 0:01:48.4]}
33... Nxb4 {[%clk 0:02:19]} 34. Rcxc7 {[%clk 0:01:45.3]} 34... Rxc7 {[%clk
0:02:16.2]} 35. Rxc7 {[%clk 0:01:45.2]} 35... Qxc7 {[%clk 0:02:12.9]} 36. Qxc7+
{[%clk 0:01:45.1]} 36... Kg8 {[%clk 0:02:12.1]} 37. Qxb6 {[%clk 0:01:35.6]}
37... Nd3 {[%clk 0:02:06.4]} 38. Qxe6+ {[%clk 0:01:31.6]} 38... Kh8 {[%clk
0:02:04.8]} 39. f3 {[%clk 0:01:15.7]} 39... Nf4 {[%clk 0:01:59.9]} 40. Qe5+
{[%clk 0:01:09.2]} 40... Kh7 {[%clk 0:01:57.2]} 41. Kh2 {[%clk 0:00:58]} 41...
g5 {[%clk 0:01:42.6]} 42. d5 {[%clk 0:00:51.6]} 42... Kg6 {[%clk 0:01:39]} 43.
d6 {[%clk 0:00:43.2]} 43... Rd8 {[%clk 0:01:35]} 44. Qe7 {[%clk 0:00:35.3]}
44... Rh8 {[%clk 0:01:23.4]} 45. d7 {[%clk 0:00:31.2]} 45... Nh5 {[%clk
0:01:12.1]} 46. d8=Q {[%clk 0:00:29.4]} 46... Rxd8 {[%clk 0:01:10.5]} 47. Qxd8
{[%clk 0:00:29.3]} 47... Nf4 {[%clk 0:01:09.8]} 48. Qd6+ {[%clk 0:00:27.4]}
48... Kh5 {[%clk 0:01:07.7]} 49. g3 {[%clk 0:00:26]} 49... Ng6 {[%clk
0:01:03.5]} 50. Qd3 {[%clk 0:00:23]} 50... Ne5 {[%clk 0:00:59.5]} 51. Qe4 {[%clk
0:00:20.2]} 51... Nf7 {[%clk 0:00:54]} 52. g4+ {[%clk 0:00:19.3]} 52... Kh4
{[%clk 0:00:51.8]} 53. Qe1# {[%clk 0:00:18.9]} 1-0

[Event "Live Chess"]
[Site "Chess.com"]
[Date "2023.05.21"]
[Round "-"]
[White "Tema1107"]
[Black "raminguy"]
[Result "0-1"]
[WhiteElo "1953"]
[BlackElo "1952"]
[TimeControl "300"]
[EndTime "1:07:39 PDT"]
[Termination "raminguy won by resignation"]

1. c4 {[%clk 0:04:57.4]} 1... d6 {[%clk 0:04:58]} 2. Nc3 {[%clk 0:04:56.5]} 2...
c5 {[%clk 0:04:57.8]} 3. Nf3 {[%clk 0:04:54.8]} 3... Nf6 {[%clk 0:04:57.2]} 4.
d4 {[%clk 0:04:54.2]} 4... cxd4 {[%clk 0:04:45]} 5. Nxd4 {[%clk 0:04:54.1]} 5...
e5 {[%clk 0:04:43.3]} 6. Nc2 {[%clk 0:04:51.7]} 6... Be7 {[%clk 0:04:41.7]} 7.
g3 {[%clk 0:04:49.3]} 7... O-O {[%clk 0:04:40.4]} 8. Bg2 {[%clk 0:04:48]} 8...
Nc6 {[%clk 0:04:38.4]} 9. b3 {[%clk 0:04:46.9]} 9... Bf5 {[%clk 0:04:34.7]} 10.
O-O {[%clk 0:04:43.9]} 10... Qc8 {[%clk 0:04:33.6]} 11. Bb2 {[%clk 0:04:37.6]}
11... Rd8 {[%clk 0:04:32.2]} 12. Ne3 {[%clk 0:04:30.4]} 12... Bh3 {[%clk
0:04:27.7]} 13. Ncd5 {[%clk 0:04:29.3]} 13... Nxd5 {[%clk 0:04:26]} 14. Nxd5
{[%clk 0:04:29.2]} 14... Bf8 {[%clk 0:04:23.9]} 15. Rc1 {[%clk 0:04:24.2]} 15...
Bxg2 {[%clk 0:04:20.9]} 16. Kxg2 {[%clk 0:04:24.1]} 16... a5 {[%clk 0:04:05.5]}
17. a3 {[%clk 0:04:11.1]} 17... Qf5 {[%clk 0:03:50.6]} 18. f3 {[%clk 0:04:05.6]}
18... e4 {[%clk 0:03:45.7]} 19. b4 {[%clk 0:03:51.9]} 19... axb4 {[%clk
0:03:41.9]} 20. axb4 {[%clk 0:03:51.8]} 20... Ra2 {[%clk 0:03:36.7]} 21. Qb3
{[%clk 0:03:34.7]} 21... Rda8 {[%clk 0:03:25.4]} 22. b5 {[%clk 0:03:20.2]} 22...
Ne5 {[%clk 0:03:18.1]} 23. Ra1 {[%clk 0:03:06]} 23... exf3+ {[%clk 0:03:15.3]}
24. exf3 {[%clk 0:03:02.7]} 24... Rxa1 {[%clk 0:03:05.6]} 25. Rxa1 {[%clk
0:03:02.6]} 25... Rxa1 {[%clk 0:02:49.2]} 26. Bxa1 {[%clk 0:03:02.5]} 26... Nd3
{[%clk 0:02:21.3]} 27. Qc3 {[%clk 0:02:28.3]} 27... Ne5 {[%clk 0:02:03.2]} 28.
g4 {[%clk 0:01:56.1]} 28... Qb1 {[%clk 0:01:55.2]} 29. f4 {[%clk 0:01:49.7]}
29... Nxg4 {[%clk 0:01:44.9]} 30. Ne7+ {[%clk 0:01:47.7]} 30... Kh8 {[%clk
0:01:43.4]} 31. Nd5 {[%clk 0:01:32.3]} 31... Qe4+ {[%clk 0:01:37.8]} 32. Kg3
{[%clk 0:01:29]} 32... Nh6 {[%clk 0:01:33]} 33. Kf2 {[%clk 0:01:11]} 33... Qh1
{[%clk 0:01:27.6]} 34. Qg3 {[%clk 0:01:06.9]} 34... Qxa1 {[%clk 0:01:25]} 0-1

[Event "Live Chess"]
[Site "Chess.com"]
[Date "2023.05.21"]
[Round "-"]
[White "Ocelot32"]
[Black "wadsy27"]
[Result "0-1"]
[WhiteElo "1385"]
[BlackElo "2573"]
[TimeControl "300"]
[EndTime "1:07:45 PDT"]
[Termination "wadsy27 won by resignation"]

1. e4 {[%clk 0:04:58.4]} 1... e6 {[%clk 0:04:58.7]} 2. d4 {[%clk 0:04:55.8]}
2... d5 {[%clk 0:04:58.6]} 3. exd5 {[%clk 0:04:54.2]} 3... exd5 {[%clk 0:04:58]}
4. Bd3 {[%clk 0:04:53.6]} 4... Nc6 {[%clk 0:04:57.3]} 5. Nf3 {[%clk 0:04:50.5]}
5... Nb4 {[%clk 0:04:56]} 6. O-O {[%clk 0:04:44.9]} 6... Nxd3 {[%clk 0:04:53.4]}
7. Qxd3 {[%clk 0:04:44.2]} 7... Nf6 {[%clk 0:04:53]} 8. Re1+ {[%clk 0:04:43.4]}
8... Be7 {[%clk 0:04:52.5]} 9. c3 {[%clk 0:04:41.3]} 9... O-O {[%clk 0:04:51.6]}
10. Bf4 {[%clk 0:04:40.3]} 10... c6 {[%clk 0:04:48.6]} 11. Nbd2 {[%clk
0:04:39.3]} 11... h6 {[%clk 0:04:43.7]} 12. Re2 {[%clk 0:04:33.3]} 12... Bg4
{[%clk 0:04:40.1]} 13. Rae1 {[%clk 0:04:31.1]} 13... Bd6 {[%clk 0:04:38.3]} 14.
Bxd6 {[%clk 0:04:28.1]} 14... Qxd6 {[%clk 0:04:38.2]} 15. Re7 {[%clk 0:04:26.4]}
15... b6 {[%clk 0:04:22.6]} 16. c4 {[%clk 0:04:11.7]} 16... Bxf3 {[%clk
0:04:18]} 17. Qxf3 {[%clk 0:04:06]} 17... Ne4 {[%clk 0:04:12.7]} 18. Rb7 {[%clk
0:03:49.9]} 18... Nxd2 {[%clk 0:04:10.4]} 19. Qe3 {[%clk 0:03:37.8]} 19... Nxc4
{[%clk 0:04:08.4]} 20. Qf3 {[%clk 0:03:30.6]} 20... Qg6 {[%clk 0:04:02.2]} 21.
Ree7 {[%clk 0:03:28]} 21... Qb1+ {[%clk 0:03:58.3]} 0-1

[Event "Live Chess"]
[Site "Chess.com"]
[Date "2023.05.21"]
[Round "-"]
[White "JoshMcK"]
[Black "Ian-Morley"]
[Result "1-0"]
[WhiteElo "1539"]
[BlackElo "1042"]
[TimeControl "300"]
[EndTime "1:07:46 PDT"]
[Termination "JoshMcK won by resignation"]

1. e4 {[%clk 0:04:59.1]} 1... d5 {[%clk 0:04:59.1]} 2. exd5 {[%clk 0:04:57.5]}
2... Qxd5 {[%clk 0:04:58.1]} 3. Nc3 {[%clk 0:04:57.1]} 3... Qd8 {[%clk
0:04:56.6]} 4. d4 {[%clk 0:04:56]} 4... Nf6 {[%clk 0:04:56]} 5. Nf3 {[%clk
0:04:54.9]} 5... Bf5 {[%clk 0:04:54.8]} 6. Bc4 {[%clk 0:04:52.7]} 6... e6 {[%clk
0:04:54.1]} 7. O-O {[%clk 0:04:51]} 7... Nd5 {[%clk 0:04:53.2]} 8. Re1 {[%clk
0:04:45.6]} 8... Nxc3 {[%clk 0:04:52]} 9. bxc3 {[%clk 0:04:44.3]} 9... Bd6
{[%clk 0:04:50.7]} 10. d5 {[%clk 0:04:42.6]} 10... O-O {[%clk 0:04:48.9]} 11.
dxe6 {[%clk 0:04:41.4]} 11... Bxe6 {[%clk 0:04:47.5]} 12. Bxe6 {[%clk
0:04:39.5]} 12... fxe6 {[%clk 0:04:47]} 13. Bg5 {[%clk 0:04:29.6]} 13... Be7
{[%clk 0:04:41.8]} 14. Qxd8 {[%clk 0:04:22.5]} 14... Bxd8 {[%clk 0:04:40.2]} 15.
Bxd8 {[%clk 0:04:21.1]} 15... Rxd8 {[%clk 0:04:39.4]} 16. Rxe6 {[%clk
0:04:20.1]} 16... Nc6 {[%clk 0:04:38]} 17. h3 {[%clk 0:04:12.6]} 17... Re8
{[%clk 0:04:36.7]} 18. Rxe8+ {[%clk 0:04:06.7]} 18... Rxe8 {[%clk 0:04:35.9]}
19. Rb1 {[%clk 0:04:01.7]} 19... b6 {[%clk 0:04:33]} 20. Nd4 {[%clk 0:03:47.4]}
20... Nxd4 {[%clk 0:04:31.5]} 21. cxd4 {[%clk 0:03:47.3]} 21... Re2 {[%clk
0:04:29.5]} 22. Rc1 {[%clk 0:03:44.6]} 22... Rd2 {[%clk 0:04:28]} 23. Kf1 {[%clk
0:03:43.5]} 23... Rxd4 {[%clk 0:04:26.9]} 24. Ke2 {[%clk 0:03:38.8]} 24... Kf7
{[%clk 0:04:25.4]} 25. Ke3 {[%clk 0:03:38]} 25... Rd7 {[%clk 0:04:23.9]} 26. c4
{[%clk 0:03:37]} 26... Ke6 {[%clk 0:04:22.8]} 27. c5 {[%clk 0:03:35.8]} 27...
Rd5 {[%clk 0:04:16.4]} 28. cxb6 {[%clk 0:03:34.1]} 28... cxb6 {[%clk 0:04:15.7]}
29. Rc7 {[%clk 0:03:29.4]} 29... Ra5 {[%clk 0:04:03.9]} 30. Rxg7 {[%clk
0:03:27.7]} 30... Rxa2 {[%clk 0:04:03.1]} 31. Rxh7 {[%clk 0:03:26.3]} 31... a5
{[%clk 0:04:02.1]} 32. Rh6+ {[%clk 0:03:24.4]} 32... Ke5 {[%clk 0:03:58.9]} 33.
Rxb6 {[%clk 0:03:23.6]} 33... Ra3+ {[%clk 0:03:58]} 34. Ke2 {[%clk 0:03:22]}
34... Ra2+ {[%clk 0:03:57]} 35. Kf3 {[%clk 0:03:19.7]} 35... Ra3+ {[%clk
0:03:56.2]} 36. Kg4 {[%clk 0:03:18.8]} 36... Ra4+ {[%clk 0:03:55.2]} 37. Kg3
{[%clk 0:03:17.1]} 37... Ra3+ {[%clk 0:03:53.4]} 38. f3 {[%clk 0:03:16.3]} 38...
Kd5 {[%clk 0:03:50.7]} 39. h4 {[%clk 0:03:14.2]} 39... Kc5 {[%clk 0:03:49.4]}
40. Rb8 {[%clk 0:03:09.9]} 40... a4 {[%clk 0:03:48.4]} 41. h5 {[%clk 0:03:08.4]}
41... Re3 {[%clk 0:03:47.3]} 42. h6 {[%clk 0:03:06.7]} 42... Re7 {[%clk
0:03:46.3]} 43. Ra8 {[%clk 0:03:03.1]} 43... Kb4 {[%clk 0:03:45.3]} 44. Rh8
{[%clk 0:03:01.5]} 44... a3 {[%clk 0:03:42.5]} 45. h7 {[%clk 0:03:00.2]} 45...
Rb7 {[%clk 0:03:40.8]} 46. Kf2 {[%clk 0:02:55.3]} 46... a2 {[%clk 0:03:39.6]}
47. Ra8 {[%clk 0:02:52.9]} 47... Rxh7 {[%clk 0:03:32.3]} 48. Rxa2 {[%clk
0:02:51.3]} 48... Kc3 {[%clk 0:03:31]} 49. Ra6 {[%clk 0:02:42.5]} 49... Kd3
{[%clk 0:03:25.4]} 50. g4 {[%clk 0:02:41.4]} 50... Rh2+ {[%clk 0:03:23.4]} 51.
Kg3 {[%clk 0:02:40.5]} 51... Rh1 {[%clk 0:03:21.6]} 52. f4 {[%clk 0:02:38.7]}
52... Ke3 {[%clk 0:03:20.4]} 53. Ra3+ {[%clk 0:02:35.1]} 53... Ke4 {[%clk
0:03:18.7]} 54. Ra4+ {[%clk 0:02:32.3]} 54... Ke3 {[%clk 0:03:16.8]} 55. g5
{[%clk 0:02:31.6]} 55... Rg1+ {[%clk 0:03:15.8]} 56. Kh4 {[%clk 0:02:30.7]}
56... Rh1+ {[%clk 0:03:14.9]} 57. Kg4 {[%clk 0:02:29.9]} 57... Rg1+ {[%clk
0:03:14]} 58. Kf5 {[%clk 0:02:29.2]} 58... Kf3 {[%clk 0:03:12.5]} 59. Kf6 {[%clk
0:02:24]} 59... Kg4 {[%clk 0:03:09.2]} 60. f5+ {[%clk 0:02:20.9]} 60... Kh5
{[%clk 0:03:00.9]} 61. g6 {[%clk 0:02:20.1]} 61... Rb1 {[%clk 0:02:56.2]} 62.
Ra7 {[%clk 0:01:51.6]} 62... Rb6+ {[%clk 0:02:52.6]} 63. Kg7 {[%clk 0:01:48.3]}
63... Rb8 {[%clk 0:02:21.1]} 64. f6 {[%clk 0:01:45]} 64... Kg5 {[%clk
0:02:16.4]} 65. f7 {[%clk 0:01:41.2]} 65... Kh5 {[%clk 0:02:11.4]} 66. f8=Q
{[%clk 0:01:39.8]} 66... Rxf8 {[%clk 0:02:02.1]} 67. Kxf8 {[%clk 0:01:39.7]}
67... Kh6 {[%clk 0:02:00.7]} 68. g7 {[%clk 0:01:36.9]} 68... Kh5 {[%clk
0:01:56.7]} 69. g8=Q {[%clk 0:01:35.1]} 1-0

[Event "Live Chess"]
[Site "Chess.com"]
[Date "2023.05.21"]
[Round "-"]
[White "ChessClubLive"]
[Black "JoeyCage"]
[Result "0-1"]
[WhiteElo "1761"]
[BlackElo "2305"]
[TimeControl "300"]
[EndTime "1:07:57 PDT"]
[Termination "JoeyCage won by resignation"]

1. e4 {[%clk 0:04:55.2]} 1... c5 {[%clk 0:04:58.3]} 2. Nf3 {[%clk 0:04:51.9]}
2... Nc6 {[%clk 0:04:57.2]} 3. d4 {[%clk 0:04:50]} 3... cxd4 {[%clk 0:04:56]} 4.
c3 {[%clk 0:04:48.4]} 4... dxc3 {[%clk 0:04:54.7]} 5. Nxc3 {[%clk 0:04:47.4]}
5... e6 {[%clk 0:04:54.6]} 6. Bc4 {[%clk 0:04:46.4]} 6... a6 {[%clk 0:04:53.2]}
7. O-O {[%clk 0:04:44]} 7... Qc7 {[%clk 0:04:48.3]} 8. Qe2 {[%clk 0:04:40.8]}
8... d6 {[%clk 0:04:46.2]} 9. Rd1 {[%clk 0:04:37]} 9... Be7 {[%clk 0:04:43.6]}
10. Be3 {[%clk 0:04:25.3]} 10... b5 {[%clk 0:04:36.7]} 11. Bb3 {[%clk 0:04:24]}
11... Bd7 {[%clk 0:04:32.2]} 12. Rac1 {[%clk 0:04:21.7]} 12... Qb8 {[%clk
0:04:29]} 13. Qd2 {[%clk 0:03:55.9]} 13... Nf6 {[%clk 0:04:25.5]} 14. e5 {[%clk
0:03:54.9]} 14... Nxe5 {[%clk 0:04:19]} 15. Nxe5 {[%clk 0:03:53.4]} 15... dxe5
{[%clk 0:04:16.2]} 16. Bg5 {[%clk 0:03:51.5]} 16... Ra7 {[%clk 0:04:11.7]} 17.
Be3 {[%clk 0:03:36.2]} 17... Rb7 {[%clk 0:04:06.4]} 18. Ne2 {[%clk 0:02:42.8]}
18... O-O {[%clk 0:04:01.6]} 19. Ng3 {[%clk 0:02:36.2]} 19... Rc8 {[%clk
0:03:39.9]} 20. Bc2 {[%clk 0:02:28]} 20... Nd5 {[%clk 0:03:29.4]} 21. Qd3 {[%clk
0:02:05.8]} 21... g6 {[%clk 0:03:20.5]} 22. Bh6 {[%clk 0:01:55.7]} 22... Nb4
{[%clk 0:03:12.7]} 23. Qxd7 {[%clk 0:01:46.6]} 23... Rxd7 {[%clk 0:03:08.3]} 24.
Rxd7 {[%clk 0:01:45.2]} 24... Nxc2 {[%clk 0:03:00.6]} 25. Rxe7 {[%clk
0:01:41.5]} 25... Nd4 {[%clk 0:02:58.8]} 26. Rxc8+ {[%clk 0:01:32]} 26... Qxc8
{[%clk 0:02:57.2]} 27. h3 {[%clk 0:01:29.4]} 27... Nc6 {[%clk 0:02:51.8]} 0-1

[Event "Live Chess"]
[Site "Chess.com"]
[Date "2023.05.21"]
[Round "-"]
[White "horsechessnut"]
[Black "Ferrarifan27"]
[Result "0-1"]
[WhiteElo "1466"]
[BlackElo "2075"]
[TimeControl "300"]
[EndTime "1:08:02 PDT"]
[Termination "Ferrarifan27 won by checkmate"]

1. d4 {[%clk 0:04:58.3]} 1... Nf6 {[%clk 0:04:56.5]} 2. Bf4 {[%clk 0:04:56.9]}
2... c5 {[%clk 0:04:54.9]} 3. e3 {[%clk 0:04:55.5]} 3... Qb6 {[%clk 0:04:53.8]}
4. b3 {[%clk 0:04:53.5]} 4... cxd4 {[%clk 0:04:50.9]} 5. exd4 {[%clk 0:04:48.1]}
5... d5 {[%clk 0:04:49.6]} 6. Nc3 {[%clk 0:04:39.7]} 6... Nc6 {[%clk 0:04:48]}
7. Nb5 {[%clk 0:04:27.3]} 7... e5 {[%clk 0:04:35.1]} 8. dxe5 {[%clk 0:04:22]}
8... Ne4 {[%clk 0:04:30.7]} 9. e6 {[%clk 0:04:16.3]} 9... Bb4+ {[%clk
0:04:27.6]} 10. Qd2 {[%clk 0:03:53.6]} 10... Bxd2+ {[%clk 0:04:25.2]} 11. Kd1
{[%clk 0:03:51.3]} 11... Bxf4 {[%clk 0:04:23.3]} 12. exf7+ {[%clk 0:03:43.7]}
12... Kxf7 {[%clk 0:04:23.2]} 13. Nf3 {[%clk 0:03:38.5]} 13... Nxf2+ {[%clk
0:04:21.5]} 14. Ke1 {[%clk 0:03:34.1]} 14... Nxh1 {[%clk 0:04:14.8]} 15. Ng5+
{[%clk 0:03:10.1]} 15... Bxg5 {[%clk 0:04:11]} 16. Nd6+ {[%clk 0:03:08.8]} 16...
Kg6 {[%clk 0:04:03.4]} 17. Bd3+ {[%clk 0:03:06.6]} 17... Kh6 {[%clk 0:03:51.2]}
18. Kd1 {[%clk 0:02:52.9]} 18... Qg1+ {[%clk 0:03:46.6]} 19. Ke2 {[%clk
0:02:49.8]} 19... Bg4# {[%clk 0:03:43.7]} 0-1